[Event "*** Titled Tuesday Blitz"]
[Site "Chess.com"]
[Date "2020.04.07"]
[Round "9"]
[White "troisi"]
[Black "Blitzking642"]
[Result "0-1"]
[WhiteElo "2114"]
[BlackElo "2400"]
[TimeControl "180+1"]
[EndTime "14:48:20 PDT"]
[Termination "Blitzking642 won by checkmate"]

1. e4 {[%clk 0:03:00.9]} 1... c5 {[%clk 0:02:59.3]} 2. c3 {[%clk 0:03:00.5]}
2... d5 {[%clk 0:02:59.2]} 3. exd5 {[%clk 0:03:01.4]} 3... Qxd5 {[%clk 0:03:00]}
4. d4 {[%clk 0:03:01.6]} 4... Nc6 {[%clk 0:03:00.7]} 5. Nf3 {[%clk 0:03:01.6]}
5... Bf5 {[%clk 0:03:00.6]} 6. Be3 {[%clk 0:03:01.9]} 6... cxd4 {[%clk
0:03:00.2]} 7. cxd4 {[%clk 0:03:02.8]} 7... Bxb1 {[%clk 0:02:59.4]} 8. Qxb1
{[%clk 0:02:55.8]} 8... Nf6 {[%clk 0:03:00.3]} 9. Be2 {[%clk 0:02:51.9]} 9... e6
{[%clk 0:03:00.3]} 10. O-O {[%clk 0:02:51.9]} 10... Be7 {[%clk 0:03:00.7]} 11.
a3 {[%clk 0:02:52.2]} 11... O-O {[%clk 0:03:00.4]} 12. Rc1 {[%clk 0:02:50.8]}
12... Rac8 {[%clk 0:03:00.2]} 13. b4 {[%clk 0:02:46.9]} 13... Rfd8 {[%clk
0:02:59.2]} 14. h3 {[%clk 0:02:46.6]} 14... Qd6 {[%clk 0:02:51]} 15. Bg5 {[%clk
0:02:42.8]} 15... h6 {[%clk 0:02:48.7]} 16. Be3 {[%clk 0:02:39.7]} 16... Nd5
{[%clk 0:02:47.6]} 17. Qb3 {[%clk 0:02:39.7]} 17... Nxe3 {[%clk 0:02:46.8]} 18.
fxe3 {[%clk 0:02:40.6]} 18... Qg3 {[%clk 0:02:46.7]} 19. b5 {[%clk 0:02:38.8]}
19... Na5 {[%clk 0:02:44.1]} 20. Qd3 {[%clk 0:02:33.3]} 20... Bd6 {[%clk
0:02:39.6]} 21. Qe4 {[%clk 0:02:28.7]} 21... Rxc1+ {[%clk 0:02:23.5]} 22. Rxc1
{[%clk 0:02:28.1]} 22... Bxa3 {[%clk 0:02:24]} 23. Ra1 {[%clk 0:02:17.1]} 23...
Bb4 {[%clk 0:02:19]} 24. Ne5 {[%clk 0:02:09.5]} 24... Bc3 {[%clk 0:01:59.6]} 25.
Rf1 {[%clk 0:01:58.2]} 25... f5 {[%clk 0:01:38.6]} 26. Qd3 {[%clk 0:01:57.8]}
26... Bb4 {[%clk 0:01:31.2]} 27. Rf3 {[%clk 0:01:38.7]} 27... Qg5 {[%clk
0:01:27.9]} 28. Nc4 {[%clk 0:01:32.9]} 28... Rc8 {[%clk 0:01:19.6]} 29. Nxa5
{[%clk 0:01:09.4]} 29... Rc1+ {[%clk 0:01:19]} 30. Rf1 {[%clk 0:01:08.7]} 30...
Rxf1+ {[%clk 0:01:18.7]} 31. Bxf1 {[%clk 0:01:09.6]} 31... Bxa5 {[%clk 0:01:19]}
32. Qb3 {[%clk 0:01:09.8]} 32... Kf7 {[%clk 0:00:47.4]} 33. d5 {[%clk
0:00:54.3]} 33... Bb6 {[%clk 0:00:47.2]} 34. dxe6+ {[%clk 0:00:52.1]} 34... Ke7
{[%clk 0:00:47]} 35. Bc4 {[%clk 0:00:46.3]} 35... Bxe3+ {[%clk 0:00:43.6]} 36.
Kh1 {[%clk 0:00:39.4]} 36... Qg3 {[%clk 0:00:42.5]} 37. Qd3 {[%clk 0:00:38.5]}
37... Qe1+ {[%clk 0:00:40.1]} 38. Qf1 {[%clk 0:00:38.4]} 38... Qxf1+ {[%clk
0:00:40.4]} 39. Bxf1 {[%clk 0:00:39.3]} 39... Kxe6 {[%clk 0:00:40.3]} 40. g4
{[%clk 0:00:38.9]} 40... f4 {[%clk 0:00:38.9]} 41. Kg2 {[%clk 0:00:38.9]} 41...
Kd6 {[%clk 0:00:38.1]} 42. Kf3 {[%clk 0:00:35.7]} 42... g5 {[%clk 0:00:37.7]}
43. Ke4 {[%clk 0:00:35.1]} 43... Kc5 {[%clk 0:00:38.2]} 44. Kf5 {[%clk 0:00:35]}
44... Kb6 {[%clk 0:00:29.6]} 45. Kg6 {[%clk 0:00:33.4]} 45... a5 {[%clk
0:00:28.9]} 46. bxa6 {[%clk 0:00:33.2]} 46... bxa6 {[%clk 0:00:29.1]} 47. Kxh6
{[%clk 0:00:32.2]} 47... f3 {[%clk 0:00:28.1]} 48. Kh5 {[%clk 0:00:27.9]} 48...
a5 {[%clk 0:00:26.2]} 49. h4 {[%clk 0:00:27.9]} 49... a4 {[%clk 0:00:18.7]} 50.
hxg5 {[%clk 0:00:23.8]} 50... a3 {[%clk 0:00:18.8]} 51. g6 {[%clk 0:00:23.7]}
51... Bd4 {[%clk 0:00:16.8]} 52. Bc4 {[%clk 0:00:19.9]} 52... f2 {[%clk
0:00:16.1]} 53. Kh6 {[%clk 0:00:19.1]} 53... a2 {[%clk 0:00:15.4]} 54. Bxa2
{[%clk 0:00:18.8]} 54... f1=Q {[%clk 0:00:15.7]} 55. Bf7 {[%clk 0:00:19.7]}
55... Qf6 {[%clk 0:00:12.3]} 56. Kh5 {[%clk 0:00:14.4]} 56... Be3 {[%clk
0:00:10.7]} 57. g7 {[%clk 0:00:13.6]} 57... Qg5# {[%clk 0:00:10.7]} 0-1

[Event "*** Titled Tuesday Blitz"]
[Site "Chess.com"]
[Date "2020.04.07"]
[Round "9"]
[White "gvanna"]
[Black "ChelsieMonica"]
[Result "0-1"]
[WhiteElo "2431"]
[BlackElo "2267"]
[TimeControl "180+1"]
[EndTime "14:48:21 PDT"]
[Termination "ChelsieMonica won by resignation"]

1. e4 {[%clk 0:03:00.7]} 1... e5 {[%clk 0:02:57.3]} 2. Nf3 {[%clk 0:03:01.1]}
2... Nc6 {[%clk 0:02:54.8]} 3. Bb5 {[%clk 0:03:01.5]} 3... a6 {[%clk 0:02:52.1]}
4. Ba4 {[%clk 0:03:01.8]} 4... Nf6 {[%clk 0:02:52.1]} 5. O-O {[%clk 0:03:01.7]}
5... b5 {[%clk 0:02:52.3]} 6. Bb3 {[%clk 0:03:02]} 6... Be7 {[%clk 0:02:51.5]}
7. Re1 {[%clk 0:03:02.2]} 7... O-O {[%clk 0:02:51.7]} 8. a4 {[%clk 0:03:02.4]}
8... b4 {[%clk 0:02:47.7]} 9. d3 {[%clk 0:03:02.4]} 9... d6 {[%clk 0:02:46.1]}
10. Nbd2 {[%clk 0:02:59.8]} 10... Be6 {[%clk 0:02:46.1]} 11. h3 {[%clk
0:02:58.5]} 11... Qd7 {[%clk 0:02:38.1]} 12. Bc4 {[%clk 0:02:54.7]} 12... Na5
{[%clk 0:02:35.3]} 13. b3 {[%clk 0:02:52.8]} 13... c6 {[%clk 0:02:13.4]} 14.
Bxe6 {[%clk 0:02:44.4]} 14... fxe6 {[%clk 0:02:07.9]} 15. d4 {[%clk 0:02:39.1]}
15... exd4 {[%clk 0:02:06.1]} 16. Nxd4 {[%clk 0:02:39.5]} 16... c5 {[%clk
0:02:02.5]} 17. N4f3 {[%clk 0:02:35.4]} 17... Nh5 {[%clk 0:02:00.6]} 18. Bb2
{[%clk 0:02:30.9]} 18... Nf4 {[%clk 0:01:58]} 19. Nf1 {[%clk 0:02:24.6]} 19...
Qe8 {[%clk 0:01:50.2]} 20. Ng3 {[%clk 0:02:19.2]} 20... Qg6 {[%clk 0:01:44.8]}
21. Re3 {[%clk 0:02:11.7]} 21... h5 {[%clk 0:01:41.8]} 22. Ne1 {[%clk
0:01:48.9]} 22... c4 {[%clk 0:01:20.4]} 23. Rf3 {[%clk 0:01:24.8]} 23... Nxh3+
{[%clk 0:00:57.2]} 24. gxh3 {[%clk 0:01:21.1]} 24... h4 {[%clk 0:00:57]} 25.
bxc4 {[%clk 0:00:50.8]} 25... Nxc4 {[%clk 0:00:53.4]} 26. Bd4 {[%clk 0:00:46.5]}
26... e5 {[%clk 0:00:46.2]} 27. Qd3 {[%clk 0:00:41.1]} 27... Rxf3 {[%clk
0:00:40.5]} 28. Nxf3 {[%clk 0:00:36.9]} 28... Rc8 {[%clk 0:00:29.8]} 29. Nxh4
{[%clk 0:00:23]} 29... Bxh4 {[%clk 0:00:29.3]} 30. Ba7 {[%clk 0:00:22.7]} 30...
Kh7 {[%clk 0:00:26.8]} 31. Kg2 {[%clk 0:00:20.8]} 31... Nb2 {[%clk 0:00:26.4]}
32. Qe2 {[%clk 0:00:16.1]} 32... Bxg3 {[%clk 0:00:23.3]} 33. fxg3 {[%clk
0:00:16.3]} 33... Rc3 {[%clk 0:00:23.8]} 34. Bf2 {[%clk 0:00:15.2]} 34... Nc4
{[%clk 0:00:22.1]} 35. Rd1 {[%clk 0:00:14.6]} 35... d5 {[%clk 0:00:21.3]} 36.
exd5 {[%clk 0:00:12.7]} 36... Rxc2 {[%clk 0:00:21.2]} 37. Qf3 {[%clk 0:00:10.4]}
37... e4 {[%clk 0:00:21.1]} 38. Qf4 {[%clk 0:00:05.4]} 38... e3 {[%clk
0:00:21.4]} 39. Rf1 {[%clk 0:00:05.8]} 39... Rxf2+ {[%clk 0:00:21.1]} 40. Rxf2
{[%clk 0:00:06.4]} 40... exf2 {[%clk 0:00:22]} 41. Kxf2 {[%clk 0:00:07.1]} 41...
Qc2+ {[%clk 0:00:21.7]} 42. Kg1 {[%clk 0:00:07.9]} 42... Qd1+ {[%clk 0:00:20.2]}
43. Kf2 {[%clk 0:00:08.4]} 43... Qd2+ {[%clk 0:00:16.9]} 44. Qxd2 {[%clk
0:00:08.1]} 44... Nxd2 {[%clk 0:00:17.8]} 45. Ke3 {[%clk 0:00:07.4]} 45... Nc4+
{[%clk 0:00:17.7]} 46. Kd4 {[%clk 0:00:08]} 46... Nd6 {[%clk 0:00:18]} 47. a5
{[%clk 0:00:08.7]} 47... Kg8 {[%clk 0:00:16.8]} 48. Kc5 {[%clk 0:00:09.3]} 48...
b3 {[%clk 0:00:16.7]} 49. Kxd6 {[%clk 0:00:09.9]} 49... b2 {[%clk 0:00:17.6]}
50. Kc7 {[%clk 0:00:10.5]} 50... b1=Q {[%clk 0:00:18.5]} 51. d6 {[%clk
0:00:11.4]} 51... Qc2+ {[%clk 0:00:18.8]} 52. Kb7 {[%clk 0:00:11.8]} 52... Qd3
{[%clk 0:00:16.6]} 53. Kc7 {[%clk 0:00:11.3]} 53... Qc4+ {[%clk 0:00:16.2]} 54.
Kb7 {[%clk 0:00:11.5]} 54... Qd5+ {[%clk 0:00:16.5]} 55. Kxa6 {[%clk 0:00:11.9]}
55... Qxd6+ {[%clk 0:00:16.4]} 56. Kb7 {[%clk 0:00:12.8]} 56... Qxg3 {[%clk
0:00:16.8]} 57. a6 {[%clk 0:00:13.4]} 57... Qxh3 {[%clk 0:00:16.9]} 58. a7
{[%clk 0:00:13.8]} 58... Qb3+ {[%clk 0:00:16.8]} 59. Kc7 {[%clk 0:00:13.8]}
59... Qa4 {[%clk 0:00:17]} 60. Kb7 {[%clk 0:00:14]} 60... g5 {[%clk 0:00:17.3]}
0-1

[Event "*** Titled Tuesday Blitz"]
[Site "Chess.com"]
[Date "2020.04.07"]
[Round "9"]
[White "maciek_92"]
[Black "Schandenfreude"]
[Result "1-0"]
[WhiteElo "2711"]
[BlackElo "2517"]
[TimeControl "180+1"]
[EndTime "14:48:23 PDT"]
[Termination "maciek_92 won by resignation"]

1. e4 {[%clk 0:03:00.9]} 1... c5 {[%clk 0:02:59.8]} 2. Nf3 {[%clk 0:03:01]} 2...
d6 {[%clk 0:03:00.3]} 3. d4 {[%clk 0:03:01.7]} 3... cxd4 {[%clk 0:03:01.2]} 4.
Nxd4 {[%clk 0:03:02.6]} 4... Nf6 {[%clk 0:03:01.1]} 5. Nc3 {[%clk 0:03:03.3]}
5... g6 {[%clk 0:03:00.8]} 6. Be3 {[%clk 0:03:01.9]} 6... Bg7 {[%clk 0:03:01.1]}
7. f3 {[%clk 0:03:02.6]} 7... Nc6 {[%clk 0:02:59.9]} 8. Bc4 {[%clk 0:03:02.9]}
8... O-O {[%clk 0:03:00.2]} 9. Qd2 {[%clk 0:03:03.1]} 9... Nxd4 {[%clk
0:03:00.1]} 10. Bxd4 {[%clk 0:03:03.2]} 10... Be6 {[%clk 0:03:01]} 11. Be2
{[%clk 0:02:57.6]} 11... Qa5 {[%clk 0:02:49.3]} 12. O-O {[%clk 0:02:44.4]} 12...
Rfc8 {[%clk 0:02:46.1]} 13. Rfd1 {[%clk 0:02:39.6]} 13... Nd7 {[%clk 0:02:32.9]}
14. Bxg7 {[%clk 0:02:38.8]} 14... Kxg7 {[%clk 0:02:32.8]} 15. Nb5 {[%clk
0:02:30.8]} 15... Qxd2 {[%clk 0:02:27.2]} 16. Rxd2 {[%clk 0:02:31.7]} 16... Ne5
{[%clk 0:02:12.5]} 17. b3 {[%clk 0:02:28.5]} 17... a6 {[%clk 0:02:11.7]} 18. Nd4
{[%clk 0:02:24.2]} 18... Rc3 {[%clk 0:02:07.6]} 19. f4 {[%clk 0:02:13.2]} 19...
Nc6 {[%clk 0:02:04.8]} 20. Nxc6 {[%clk 0:02:13]} 20... Rxc6 {[%clk 0:01:57.1]}
21. c4 {[%clk 0:02:11.7]} 21... a5 {[%clk 0:01:40.8]} 22. g4 {[%clk 0:01:53.2]}
22... f6 {[%clk 0:01:38.7]} 23. a4 {[%clk 0:01:18.2]} 23... Rb6 {[%clk
0:01:33.5]} 24. Rd3 {[%clk 0:01:15.5]} 24... Rc8 {[%clk 0:01:31.1]} 25. Kf2
{[%clk 0:01:11.7]} 25... Rb4 {[%clk 0:01:30.3]} 26. h4 {[%clk 0:01:09.8]} 26...
Rc6 {[%clk 0:01:29.2]} 27. Rc1 {[%clk 0:01:08.1]} 27... Rcb6 {[%clk 0:01:23.8]}
28. Rcc3 {[%clk 0:01:07.6]} 28... Rc6 {[%clk 0:01:23.5]} 29. Bf3 {[%clk
0:01:03.6]} 29... Rc7 {[%clk 0:01:18.6]} 30. Re3 {[%clk 0:00:55.1]} 30... Kf7
{[%clk 0:00:58.8]} 31. Ke2 {[%clk 0:00:47.9]} 31... h6 {[%clk 0:00:57.6]} 32. f5
{[%clk 0:00:46.3]} 32... Bd7 {[%clk 0:00:51.9]} 33. Kd2 {[%clk 0:00:33.1]} 33...
Rc5 {[%clk 0:00:50.2]} 34. Red3 {[%clk 0:00:24.5]} 34... Bc6 {[%clk 0:00:46.2]}
35. Ke3 {[%clk 0:00:23.4]} 35... Re5 {[%clk 0:00:46]} 36. Kf4 {[%clk 0:00:20.9]}
36... g5+ {[%clk 0:00:45.4]} 37. hxg5 {[%clk 0:00:21.8]} 37... hxg5+ {[%clk
0:00:45.7]} 38. Ke3 {[%clk 0:00:22.4]} 38... Rb6 {[%clk 0:00:39.4]} 39. Rd2
{[%clk 0:00:19.5]} 39... Ke8 {[%clk 0:00:37.3]} 40. Rh2 {[%clk 0:00:19.7]} 40...
Kd7 {[%clk 0:00:36.7]} 41. Kd4 {[%clk 0:00:18.5]} 41... Ra6 {[%clk 0:00:35.9]}
42. Rh8 {[%clk 0:00:18.9]} 42... Kc7 {[%clk 0:00:24.5]} 43. Re3 {[%clk
0:00:16.5]} 43... Kb6 {[%clk 0:00:23.7]} 44. Bd1 {[%clk 0:00:15.6]} 44... Ra7
{[%clk 0:00:23.4]} 45. Bc2 {[%clk 0:00:15.8]} 45... Ra6 {[%clk 0:00:23.4]} 46.
Reh3 {[%clk 0:00:15.7]} 46... Ra7 {[%clk 0:00:23.3]} 47. R3h7 {[%clk 0:00:14.1]}
47... Kc7 {[%clk 0:00:18.1]} 48. Rf8 {[%clk 0:00:14.5]} 48... Kd7 {[%clk
0:00:16.4]} 49. Rxf6 {[%clk 0:00:14.3]} 49... Ra8 {[%clk 0:00:11.1]} 50. Rg6
{[%clk 0:00:13.9]} 50... Rf8 {[%clk 0:00:03.7]} 51. Rxg5 {[%clk 0:00:13.5]}
51... Kc8 {[%clk 0:00:04]} 52. Rgg7 {[%clk 0:00:13.8]} 52... Kb8 {[%clk
0:00:04]} 53. Bd3 {[%clk 0:00:11.8]} 53... e6 {[%clk 0:00:03.7]} 54. Rf7 {[%clk
0:00:07.9]} 54... Rg8 {[%clk 0:00:02.2]} 55. Rhg7 {[%clk 0:00:08.3]} 55... Rh8
{[%clk 0:00:01.9]} 56. f6 {[%clk 0:00:08.7]} 56... Rh1 {[%clk 0:00:01.4]} 57.
Rf8+ {[%clk 0:00:08.4]} 57... Ka7 {[%clk 0:00:01.3]} 58. f7 {[%clk 0:00:09]}
58... Rf1 {[%clk 0:00:01]} 59. Rh8 {[%clk 0:00:07]} 59... Rf4 {[%clk 0:00:01.3]}
60. f8=Q {[%clk 0:00:07]} 60... Rexe4+ {[%clk 0:00:01.7]} 61. Bxe4 {[%clk
0:00:07.6]} 61... Rxe4+ {[%clk 0:00:02.6]} 62. Kd3 {[%clk 0:00:08.1]} 1-0

[Event "*** Titled Tuesday Blitz"]
[Site "Chess.com"]
[Date "2020.04.07"]
[Round "9"]
[White "Rubinstein_Akiba"]
[Black "dopolian"]
[Result "1-0"]
[WhiteElo "2377"]
[BlackElo "2480"]
[TimeControl "180+1"]
[EndTime "14:48:23 PDT"]
[Termination "Rubinstein_Akiba won by resignation"]

1. e4 {[%clk 0:03:00.9]} 1... e5 {[%clk 0:02:59.1]} 2. Nf3 {[%clk 0:02:59.3]}
2... Nc6 {[%clk 0:02:59.3]} 3. Bb5 {[%clk 0:02:58.4]} 3... a6 {[%clk 0:02:59.3]}
4. Bxc6 {[%clk 0:02:58.3]} 4... dxc6 {[%clk 0:03:00.2]} 5. O-O {[%clk
0:02:57.9]} 5... f6 {[%clk 0:03:00.5]} 6. d4 {[%clk 0:02:57.3]} 6... exd4 {[%clk
0:03:01.4]} 7. Qxd4 {[%clk 0:02:57.8]} 7... Qxd4 {[%clk 0:03:01.7]} 8. Nxd4
{[%clk 0:02:58.7]} 8... c5 {[%clk 0:03:02.2]} 9. Ne2 {[%clk 0:02:58]} 9... Bd7
{[%clk 0:03:02.2]} 10. Be3 {[%clk 0:02:57.1]} 10... O-O-O {[%clk 0:02:58.5]} 11.
Nbc3 {[%clk 0:02:57.3]} 11... b6 {[%clk 0:02:51.6]} 12. a4 {[%clk 0:02:57]}
12... a5 {[%clk 0:02:51.4]} 13. Rad1 {[%clk 0:02:55.1]} 13... Ne7 {[%clk
0:02:48.6]} 14. f4 {[%clk 0:02:51.2]} 14... Nc6 {[%clk 0:02:42.9]} 15. Rd2
{[%clk 0:02:51.5]} 15... Be7 {[%clk 0:02:38]} 16. Rfd1 {[%clk 0:02:51.7]} 16...
Be6 {[%clk 0:02:37]} 17. b3 {[%clk 0:02:46.4]} 17... c4 {[%clk 0:02:25.5]} 18.
Nd5 {[%clk 0:02:40.9]} 18... cxb3 {[%clk 0:02:19.5]} 19. cxb3 {[%clk 0:02:37.6]}
19... Bxd5 {[%clk 0:02:16.2]} 20. Rxd5 {[%clk 0:02:01.4]} 20... Nb4 {[%clk
0:02:10.8]} 21. Rxd8+ {[%clk 0:01:55.1]} 21... Rxd8 {[%clk 0:02:10.8]} 22. Rxd8+
{[%clk 0:01:53.9]} 22... Kxd8 {[%clk 0:02:10.7]} 23. Nd4 {[%clk 0:01:54.2]}
23... Kd7 {[%clk 0:02:09.3]} 24. Nb5 {[%clk 0:01:52.9]} 24... Nd3 {[%clk
0:02:06.1]} 25. Kf1 {[%clk 0:01:49.8]} 25... Bc5 {[%clk 0:01:59.1]} 26. Ke2
{[%clk 0:01:45.6]} 26... Bxe3 {[%clk 0:01:50.7]} 27. Kxe3 {[%clk 0:01:46.5]}
27... Nc1 {[%clk 0:01:36.3]} 28. Nd4 {[%clk 0:01:45.6]} 28... c5 {[%clk
0:01:36.4]} 29. Kd2 {[%clk 0:01:42.9]} 29... Na2 {[%clk 0:01:19.9]} 30. Nf5
{[%clk 0:01:40.8]} 30... g6 {[%clk 0:01:18.3]} 31. Ne3 {[%clk 0:01:40.5]} 31...
Nb4 {[%clk 0:01:17]} 32. Kc3 {[%clk 0:01:38.1]} 32... Kc6 {[%clk 0:01:04.6]} 33.
Kc4 {[%clk 0:01:34.4]} 33... Kd6 {[%clk 0:00:38.3]} 34. Kb5 {[%clk 0:01:25.4]}
34... Nd3 {[%clk 0:00:37.2]} 35. g3 {[%clk 0:01:23.6]} 35... Nc1 {[%clk
0:00:33.3]} 36. Nc4+ {[%clk 0:01:14.2]} 36... Ke6 {[%clk 0:00:31.5]} 37. Nd2
{[%clk 0:01:12.1]} 37... Kd6 {[%clk 0:00:14.7]} 38. Kxb6 {[%clk 0:01:07.4]}
38... Nd3 {[%clk 0:00:05.2]} 39. Kxa5 {[%clk 0:01:02.3]} 39... Kc6 {[%clk
0:00:04.8]} 40. Nc4 {[%clk 0:00:57.5]} 40... Nc1 {[%clk 0:00:04.5]} 41. Nd2
{[%clk 0:00:55.2]} 41... Nd3 {[%clk 0:00:04.8]} 42. Ka6 {[%clk 0:00:54.4]} 42...
Nb4+ {[%clk 0:00:04.6]} 43. Ka7 {[%clk 0:00:54.3]} 43... Nd3 {[%clk 0:00:03.7]}
44. Nc4 {[%clk 0:00:52.1]} 44... Nc1 {[%clk 0:00:03.5]} 45. Na5+ {[%clk
0:00:49]} 45... Kc7 {[%clk 0:00:04.1]} 46. Ka6 {[%clk 0:00:48.4]} 46... Ne2
{[%clk 0:00:03]} 47. Nc4 {[%clk 0:00:43.9]} 47... Nc3 {[%clk 0:00:02.5]} 48. e5
{[%clk 0:00:42.7]} 48... fxe5 {[%clk 0:00:03.4]} 49. Nxe5 {[%clk 0:00:42]} 49...
Nd1 {[%clk 0:00:01.9]} 50. Kb5 {[%clk 0:00:41.2]} 50... Kd6 {[%clk 0:00:02.5]}
51. a5 {[%clk 0:00:40]} 51... Nc3+ {[%clk 0:00:02.9]} 52. Kc4 {[%clk 0:00:40]}
52... Ne4 {[%clk 0:00:02.8]} 53. a6 {[%clk 0:00:39.1]} 53... Kc7 {[%clk
0:00:01.9]} 54. Kd5 {[%clk 0:00:39.1]} 54... Nd2 {[%clk 0:00:02.5]} 55. Kxc5
{[%clk 0:00:34.8]} 55... Nxb3+ {[%clk 0:00:02.6]} 56. Kd5 {[%clk 0:00:34.8]}
56... Kb6 {[%clk 0:00:02.5]} 57. Ke6 {[%clk 0:00:32.9]} 57... Nd2 {[%clk
0:00:02.3]} 58. Kf7 {[%clk 0:00:31]} 58... Kxa6 {[%clk 0:00:01.7]} 59. Kg7
{[%clk 0:00:30.1]} 59... Nf1 {[%clk 0:00:02]} 60. Nf3 {[%clk 0:00:29.5]} 60...
Ne3 {[%clk 0:00:01.4]} 61. Kxh7 {[%clk 0:00:28.7]} 61... Ng4 {[%clk 0:00:01.6]}
62. Kxg6 {[%clk 0:00:28.4]} 62... Kb6 {[%clk 0:00:02.2]} 63. h4 {[%clk
0:00:28.2]} 1-0

[Event "*** Titled Tuesday Blitz"]
[Site "Chess.com"]
[Date "2020.04.07"]
[Round "9"]
[White "Hikaru"]
[Black "Zavgorodniy_Serg"]
[Result "0-1"]
[WhiteElo "3236"]
[BlackElo "2740"]
[TimeControl "180+1"]
[EndTime "14:48:24 PDT"]
[Termination "Zavgorodniy_Serg won by resignation"]

1. Nf3 {[%clk 0:03:00.9]} 1... Nf6 {[%clk 0:02:59.4]} 2. d4 {[%clk 0:03:00.1]}
2... e6 {[%clk 0:02:58]} 3. c4 {[%clk 0:03:01]} 3... Bb4+ {[%clk 0:02:57.4]} 4.
Nbd2 {[%clk 0:02:58.5]} 4... b6 {[%clk 0:02:54.8]} 5. a3 {[%clk 0:02:58.8]} 5...
Bxd2+ {[%clk 0:02:54.5]} 6. Bxd2 {[%clk 0:02:59.7]} 6... Bb7 {[%clk 0:02:54.6]}
7. g3 {[%clk 0:03:00.2]} 7... d6 {[%clk 0:02:52.1]} 8. Bg2 {[%clk 0:02:59.6]}
8... Nbd7 {[%clk 0:02:52.2]} 9. O-O {[%clk 0:02:59.3]} 9... O-O {[%clk
0:02:51.4]} 10. Rc1 {[%clk 0:02:57.6]} 10... Qe7 {[%clk 0:02:51]} 11. Re1 {[%clk
0:02:56.4]} 11... Be4 {[%clk 0:02:49]} 12. Bh3 {[%clk 0:02:56.2]} 12... h6
{[%clk 0:02:48.4]} 13. Nh4 {[%clk 0:02:56.2]} 13... c5 {[%clk 0:02:39.6]} 14.
Bc3 {[%clk 0:02:51.4]} 14... Rac8 {[%clk 0:02:34.1]} 15. f3 {[%clk 0:02:45.5]}
15... Bb7 {[%clk 0:02:26.7]} 16. e4 {[%clk 0:02:43.4]} 16... cxd4 {[%clk
0:02:22.8]} 17. Bxd4 {[%clk 0:02:44.3]} 17... Ne5 {[%clk 0:02:14.1]} 18. b3
{[%clk 0:02:41.3]} 18... Rfd8 {[%clk 0:02:12.3]} 19. Qe2 {[%clk 0:02:25.7]}
19... g5 {[%clk 0:02:04.9]} 20. Ng2 {[%clk 0:02:24.8]} 20... g4 {[%clk
0:02:02.7]} 21. Bxg4 {[%clk 0:02:07.6]} 21... Nexg4 {[%clk 0:01:50.6]} 22. fxg4
{[%clk 0:02:07.8]} 22... Nxe4 {[%clk 0:01:49.2]} 23. Be3 {[%clk 0:02:06.4]}
23... Ng5 {[%clk 0:01:43]} 24. Bxg5 {[%clk 0:01:51]} 24... hxg5 {[%clk
0:01:39.2]} 25. Ne3 {[%clk 0:01:49.6]} 25... d5 {[%clk 0:01:31.7]} 26. cxd5
{[%clk 0:01:47]} 26... Rxc1 {[%clk 0:01:29.3]} 27. Rxc1 {[%clk 0:01:46.4]} 27...
Bxd5 {[%clk 0:01:29.7]} 28. b4 {[%clk 0:01:25.6]} 28... Ba8 {[%clk 0:01:24.9]}
29. Rd1 {[%clk 0:01:22]} 29... Rxd1+ {[%clk 0:01:20.9]} 30. Qxd1 {[%clk
0:01:19.6]} 30... Qb7 {[%clk 0:01:11.3]} 31. Kf2 {[%clk 0:01:14.5]} 31... Kg7
{[%clk 0:01:05.8]} 32. h4 {[%clk 0:01:12.1]} 32... gxh4 {[%clk 0:00:52.1]} 33.
Qd4+ {[%clk 0:01:03.6]} 33... Kh7 {[%clk 0:00:46.6]} 34. gxh4 {[%clk 0:01:00]}
34... Qf3+ {[%clk 0:00:43.8]} 35. Ke1 {[%clk 0:01:00.2]} 35... Qg3+ {[%clk
0:00:42.4]} 36. Ke2 {[%clk 0:00:56.8]} 36... Qxh4 {[%clk 0:00:40.9]} 37. Qd7
{[%clk 0:00:55.7]} 37... Qh2+ {[%clk 0:00:38.6]} 38. Ke1 {[%clk 0:00:35.9]}
38... Qg3+ {[%clk 0:00:36.5]} 39. Kd2 {[%clk 0:00:34.7]} 39... Qf2+ {[%clk
0:00:33.3]} 40. Kd3 {[%clk 0:00:33.8]} 40... Qf4 {[%clk 0:00:33.7]} 41. Qxa7
{[%clk 0:00:19.2]} 41... Be4+ {[%clk 0:00:32.2]} 42. Kc4 {[%clk 0:00:17]} 42...
Bg6+ {[%clk 0:00:21.8]} 43. Kb5 {[%clk 0:00:15]} 43... Qxe3 {[%clk 0:00:21.7]}
44. Qxb6 {[%clk 0:00:14.6]} 44... Qxa3 {[%clk 0:00:19.2]} 45. Qc5 {[%clk
0:00:14.6]} 45... Qd3+ {[%clk 0:00:18.7]} 46. Kb6 {[%clk 0:00:14.6]} 46... Qe4
{[%clk 0:00:15.3]} 47. g5 {[%clk 0:00:13.6]} 47... Qd5 {[%clk 0:00:11.9]} 48.
Qe3 {[%clk 0:00:13.3]} 48... Qd6+ {[%clk 0:00:11.2]} 49. Ka5 {[%clk 0:00:13.9]}
49... Bf5 {[%clk 0:00:10.7]} 50. b5 {[%clk 0:00:13.5]} 50... Qc7+ {[%clk
0:00:09.6]} 51. b6 {[%clk 0:00:13.7]} 51... Qc6 {[%clk 0:00:09.7]} 52. Qd4
{[%clk 0:00:12.1]} 52... Be4 {[%clk 0:00:09.2]} 53. Ka6 {[%clk 0:00:10.2]} 53...
Qb7+ {[%clk 0:00:08]} 54. Ka5 {[%clk 0:00:10.4]} 54... Qd5+ {[%clk 0:00:08.2]}
55. Ka6 {[%clk 0:00:10.9]} 55... Qxd4 {[%clk 0:00:07.5]} 56. b7 {[%clk
0:00:11.8]} 56... Qa4+ {[%clk 0:00:07.4]} 57. Kb6 {[%clk 0:00:11.8]} 57... Qb4+
{[%clk 0:00:08]} 58. Kc7 {[%clk 0:00:12.7]} 58... Qxb7+ {[%clk 0:00:08.2]} 59.
Kd6 {[%clk 0:00:13.6]} 59... Qc6+ {[%clk 0:00:08.1]} 60. Ke5 {[%clk 0:00:14.5]}
60... Qd5+ {[%clk 0:00:08.1]} 0-1